{"text_format":"1","workbook":"xlsx","n_sheets":2,"sheets":[">25k report","Macro1"],"not_rendered":{"charts":0,"images":0,"macros":0,"external_links":0,"defined_names":25,"comments":0,"pivot_tables":0},"unopened":[],"bounds":{"document_bytes":16777216,"sheet_cells":100000,"rows_first":2000,"rows_last":500,"rows_between":2000,"halvings":0,"cell_chars":16384,"cell_head_chars":4096},"cells_cut":0,"cells_raw":0,"read":"whole","date_system":"1900"}

{"sheet":">25k report","index":0,"n_rows":156,"n_cols":9,"rows_kept":156,"cut":false,"hidden":false,"merged":[]}
["Ledger Id:2030","GL Journal Period Name:<All>"]
[]
["Department Family","Entity","Invoice Date","Expense Type","Expense Area","Supplier Name","Transaction Number","Amount","Description"]
["Department of Health","CWPFT","2018-07-27","STAFF","CORPORATE SUPPORT SERVICE","ST HELENS AND KNOWSLEY HOSPITALS NHS TRUST",5141389,160000,"DRA-AUG 18-POST GRADUATE LEVY-MERSEY"]
["Department of Health","CWPFT","2018-07-31","COMPUTER SOFTWARE / LICENSE  FEES","CORPORATE SUPPORT SERVICE","INSOURCE IT CONSULTANCY LTD.",5141526,60700,"CWPP275a To provide a managed service for the period 01 April 2018 - 31 May 2019.  (This links to existing PO 4871036323 and needs to be added to that PO)."]
["Department of Health","CWPFT","2018-07-26","ELECTRICITY","CORPORATE SUPPORT SERVICE","COUNTESS OF CHESTER HOSPITALS NHS FOUNDATION TRUST",5141571,45187.32,"DRA-APR-JUN.18-ELECTRICITY RECHARGE-ESTIMATE"]
["Department of Health","CWPFT","2018-07-31","DRESSINGS","NEIGHBOURHOOD","NWOS",5141575,81628.009999999995,"DRA-JUL.18-CONSOLIDATED INVOICE"]
["Department of Health","CWPFT",null,"DRESSINGS","JOINT THERAPIES","NWOS",null,39.24,"DRA-JUL.18-CONSOLIDATED INVOICE"]
["Department of Health","CWPFT","2018-08-02","HEALTHCARE FROM FOUNDATION TRUSTS","SPECIALIST MENTAL HEALTH","NORTH WEST BOROUGHS HEALTHCARE NHS FOUNDATION TRUST",5141619,43667,"DRA AUG.18-PERINATAL SERVICE"]
["Department of Health","CWPFT","2018-08-06","COMPUTER SOFTWARE / LICENSE  FEES","CORPORATE SUPPORT SERVICE","MICAD SYSTEMS (U.K.) LTD",5141846,5231.8599999999997,"DRA- 4871033003 -130618-120619-ANNUAL RENEWAL"]
["Department of Health","CWPFT",null,"COMPUTER SOFTWARE / LICENSE  FEES","CORPORATE SUPPORT SERVICE","MICAD SYSTEMS (U.K.) LTD",null,26159.3,"CWPP304 ANNUAL MICAD APPLICATION HOSTING SERVICE CONTRACT. CONTRACT PERIOD: 13/06/2018 - 12/06/2019. YOUR REFERENCE ER229/P3016/P3139/P3164 SWM."]
["Department of Health","CWPFT","2018-08-07","PROFESSIONAL FEES","CORPORATE SUPPORT SERVICE","NHS EASTERN CHESHIRE CCG",5141874,29000,"DRA-EXTERNAL CONSULTANCY FEES"]
["Department of Health","CWPFT","2018-08-06","BUILDING CONTRACTS","SPECIALIST MENTAL HEALTH","WHITFIELD & BROWN (DEVELOPMENTS) LTD",5141915,125708.14,"8 BED EXTENSION TO BOWMERE HOSPITAL AS PER YOUR SUCCESSFUL TENDER (DELTA REF. CWP014)"]
["Department of Health","CWPFT","2018-08-07","HEALTHCARE FROM FOUNDATION TRUSTS","SPECIALIST MENTAL HEALTH","COUNTESS OF CHESTER HOSPITALS NHS FOUNDATION TRUST",5142070,37372.5,"MAN-2018/19-QTRS 1 & 2-BOWMERE PATHOLOGY SLA-CHEMISTRY & HAEMATOLOGY"]
["Department of Health","CWPFT","2018-08-07","COMPUTER NETWORK COSTS","CORPORATE SUPPORT SERVICE","BT COMMUNICATIONS PLC",5142080,19139.920000000002,"BT Charges - August 2018 | CSBT93401 | 01/07/2018 to 31/07/2018"]
["Department of Health","CWPFT",null,"TELEPHONE RENTAL AND CALL CHARGES","OPERATIONAL MANAGEMENT","BT COMMUNICATIONS PLC",null,29.54,"BT Charges - August 2018 | 01513471885 | 01/08/2018 to 31/08/2018"]
["Department of Health","CWPFT",null,"TELEPHONE RENTAL AND CALL CHARGES","OPERATIONAL MANAGEMENT","BT COMMUNICATIONS PLC",null,286.18,"BT Charges - August 2018 | 01513474200 | 01/08/2018 to 31/08/2018"]
["Department of Health","CWPFT",null,"TELEPHONE RENTAL AND CALL CHARGES","OPERATIONAL MANAGEMENT","BT COMMUNICATIONS PLC",null,36.9,"BT Charges - August 2018 | 01513480728 | 01/08/2018 to 31/08/2018"]
["Department of Health","CWPFT",null,"TELEPHONE RENTAL AND CALL CHARGES","OPERATIONAL MANAGEMENT","BT COMMUNICATIONS PLC",null,29.52,"BT Charges - August 2018 | 01513530062 | 01/08/2018 to 31/08/2018"]
["Department of Health","CWPFT",null,"TELEPHONE RENTAL AND CALL CHARGES","OPERATIONAL MANAGEMENT","BT COMMUNICATIONS PLC",null,29.52,"BT Charges - August 2018 | 01513530618 | 01/08/2018 to 31/08/2018"]
["Department of Health","CWPFT",null,"TELEPHONE RENTAL AND CALL CHARGES","SPECIALIST MENTAL HEALTH","BT COMMUNICATIONS PLC",null,16.55,"BT Charges - August 2018 | 01925242440 | 01/08/2018 to 31/08/2018"]
["Department of Health","CWPFT",null,"TELEPHONE RENTAL AND CALL CHARGES","OPERATIONAL MANAGEMENT","BT COMMUNICATIONS PLC",null,29.52,"BT Charges - August 2018 | 01513530781 | 01/08/2018 to 31/08/2018"]
["Department of Health","CWPFT",null,"TELEPHONE RENTAL AND CALL CHARGES","OPERATIONAL MANAGEMENT","BT COMMUNICATIONS PLC",null,29.52,"BT Charges - August 2018 | 01513531016 | 01/08/2018 to 31/08/2018"]
["Department of Health","CWPFT",null,"TELEPHONE RENTAL AND CALL CHARGES","OPERATIONAL MANAGEMENT","BT COMMUNICATIONS PLC",null,30.18,"BT Charges - August 2018 | 01513531873 | 01/08/2018 to 31/08/2018"]
["Department of Health","CWPFT",null,"TELEPHONE RENTAL AND CALL CHARGES","OPERATIONAL MANAGEMENT","BT COMMUNICATIONS PLC",null,15.450000000000001,"BT Charges - August 2018 | 01513556818 | 01/08/2018 to 31/08/2018"]
["Department of Health","CWPFT",null,"TELEPHONE RENTAL AND CALL CHARGES","OPERATIONAL MANAGEMENT","BT COMMUNICATIONS PLC",null,16.61,"BT Charges - August 2018 | 01513562610 | 01/08/2018 to 31/08/2018"]
["Department of Health","CWPFT",null,"TELEPHONE RENTAL AND CALL CHARGES","OPERATIONAL MANAGEMENT","BT COMMUNICATIONS PLC",null,29.52,"BT Charges - August 2018 | 01513564991 | 01/08/2018 to 31/08/2018"]
["Department of Health","CWPFT",null,"TELEPHONE RENTAL AND CALL CHARGES","OPERATIONAL MANAGEMENT","BT COMMUNICATIONS PLC",null,34.65,"BT Charges - August 2018 | 01513565068 | 01/08/2018 to 31/08/2018"]
["Department of Health","CWPFT",null,"TELEPHONE RENTAL AND CALL CHARGES","OPERATIONAL MANAGEMENT","BT COMMUNICATIONS PLC",null,1797.8600000000001,"BT Charges - August 2018 | 01625505600 | 01/08/2018 to 31/08/2018"]
["Department of Health","CWPFT",null,"TELEPHONE RENTAL AND CALL CHARGES","SPECIALIST MENTAL HEALTH","BT COMMUNICATIONS PLC",null,15.27,"BT Charges - August 2018 | 01625890054 | 01/08/2018 to 31/08/2018"]
["Department of Health","CWPFT",null,"TELEPHONE RENTAL AND CALL CHARGES","OPERATIONAL MANAGEMENT","BT COMMUNICATIONS PLC",null,15.18,"BT Charges - August 2018 | 01625618246 | 01/08/2018 to 31/08/2018"]
["Department of Health","CWPFT",null,"TELEPHONE RENTAL AND CALL CHARGES","OPERATIONAL MANAGEMENT","BT COMMUNICATIONS PLC",null,30.240000000000002,"BT Charges - August 2018 | 01244403950 | 01/08/2018 to 31/08/2018"]
["Department of Health","CWPFT",null,"TELEPHONE RENTAL AND CALL CHARGES","OPERATIONAL MANAGEMENT","BT COMMUNICATIONS PLC",null,30.37,"BT Charges - August 2018 | 01244679812 | 01/08/2018 to 31/08/2018"]
["Department of Health","CWPFT",null,"TELEPHONE RENTAL AND CALL CHARGES","OPERATIONAL MANAGEMENT","BT COMMUNICATIONS PLC",null,29.52,"BT Charges - August 2018 | 01244680609 | 01/08/2018 to 31/08/2018"]
["Department of Health","CWPFT",null,"TELEPHONE RENTAL AND CALL CHARGES","OPERATIONAL MANAGEMENT","BT COMMUNICATIONS PLC",null,34.44,"BT Charges - August 2018 | 01244680975 | 01/08/2018 to 31/08/2018"]
["Department of Health","CWPFT",null,"TELEPHONE RENTAL AND CALL CHARGES","OPERATIONAL MANAGEMENT","BT COMMUNICATIONS PLC",null,86.67,"BT Charges - August 2018 | 01244682991 | 01/08/2018 to 31/08/2018"]
["Department of Health","CWPFT",null,"TELEPHONE RENTAL AND CALL CHARGES","OPERATIONAL MANAGEMENT","BT COMMUNICATIONS PLC",null,16.68,"BT Charges - August 2018 | 01270255042 | 01/08/2018 to 31/08/2018"]
["Department of Health","CWPFT",null,"TELEPHONE RENTAL AND CALL CHARGES","OPERATIONAL MANAGEMENT","BT COMMUNICATIONS PLC",null,15.16,"BT Charges - August 2018 | 01270581000 | 01/08/2018 to 31/08/2018"]
["Department of Health","CWPFT",null,"TELEPHONE RENTAL AND CALL CHARGES","OPERATIONAL MANAGEMENT","BT COMMUNICATIONS PLC",null,17.72,"BT Charges - August 2018 | 01270582020 | 01/08/2018 to 31/08/2018"]
["Department of Health","CWPFT",null,"TELEPHONE RENTAL AND CALL CHARGES","OPERATIONAL MANAGEMENT","BT COMMUNICATIONS PLC",null,1378.93,"BT Charges - August 2018 | 01270655200 | 01/08/2018 to 31/08/2018"]
["Department of Health","CWPFT",null,"TELEPHONE RENTAL AND CALL CHARGES","OPERATIONAL MANAGEMENT","BT COMMUNICATIONS PLC",null,29.52,"BT Charges - August 2018 | 01513363995 | 01/08/2018 to 31/08/2018"]
["Department of Health","CWPFT",null,"TELEPHONE RENTAL AND CALL CHARGES","OPERATIONAL MANAGEMENT","BT COMMUNICATIONS PLC",null,29.52,"BT Charges - August 2018 | 01513366841 | 01/08/2018 to 31/08/2018"]
["Department of Health","CWPFT",null,"TELEPHONE RENTAL AND CALL CHARGES","OPERATIONAL MANAGEMENT","BT COMMUNICATIONS PLC",null,31.1,"BT Charges - August 2018 | 01513391857 | 01/08/2018 to 31/08/2018"]
["Department of Health","CWPFT",null,"TELEPHONE RENTAL AND CALL CHARGES","OPERATIONAL MANAGEMENT","BT COMMUNICATIONS PLC",null,90.210000000000008,"BT Charges - August 2018 | 01513392183 | 01/08/2018 to 31/08/2018"]
["Department of Health","CWPFT",null,"TELEPHONE RENTAL AND CALL CHARGES","OPERATIONAL MANAGEMENT","BT COMMUNICATIONS PLC",null,127.25,"BT Charges - August 2018 | 01513392208 | 01/08/2018 to 31/08/2018"]
["Department of Health","CWPFT",null,"TELEPHONE RENTAL AND CALL CHARGES","OPERATIONAL MANAGEMENT","BT COMMUNICATIONS PLC",null,68.7,"BT Charges - August 2018 | 01513394781 | 01/08/2018 to 31/08/2018"]
["Department of Health","CWPFT",null,"TELEPHONE RENTAL AND CALL CHARGES","OPERATIONAL MANAGEMENT","BT COMMUNICATIONS PLC",null,29.6,"BT Charges - August 2018 | 01513396119 | 01/08/2018 to 31/08/2018"]
["Department of Health","CWPFT",null,"TELEPHONE RENTAL AND CALL CHARGES","OPERATIONAL MANAGEMENT","BT COMMUNICATIONS PLC",null,17.150000000000002,"BT Charges - August 2018 | 01513398757 | 01/08/2018 to 31/08/2018"]
["Department of Health","CWPFT",null,"TELEPHONE RENTAL AND CALL CHARGES","OPERATIONAL MANAGEMENT","BT COMMUNICATIONS PLC",null,15.950000000000001,"BT Charges - August 2018 | 01829740082 | 01/08/2018 to 31/08/2018"]
["Department of Health","CWPFT",null,"TELEPHONE RENTAL AND CALL CHARGES","OPERATIONAL MANAGEMENT","BT COMMUNICATIONS PLC",null,15.16,"BT Charges - August 2018 | 01928735139 | 01/08/2018 to 31/08/2018"]
["Department of Health","CWPFT",null,"TELEPHONE RENTAL AND CALL CHARGES","OPERATIONAL MANAGEMENT","BT COMMUNICATIONS PLC",null,53.07,"BT Charges - August 2018 | 01948860038 | 01/08/2018 to 31/08/2018"]
["Department of Health","CWPFT",null,"TELEPHONE RENTAL AND CALL CHARGES","OPERATIONAL MANAGEMENT","BT COMMUNICATIONS PLC",null,26.54,"BT Charges - August 2018 | 01948860177 | 01/08/2018 to 31/08/2018"]
["Department of Health","CWPFT",null,"TELEPHONE RENTAL AND CALL CHARGES","OPERATIONAL MANAGEMENT","BT COMMUNICATIONS PLC",null,15.36,"BT Charges - August 2018 | 01948860723 | 01/08/2018 to 31/08/2018"]
["Department of Health","CWPFT",null,"TELEPHONE RENTAL AND CALL CHARGES","OPERATIONAL MANAGEMENT","BT COMMUNICATIONS PLC",null,43.43,"BT Charges - August 2018 | 01948861212 | 01/08/2018 to 31/08/2018"]
["Department of Health","CWPFT",null,"TELEPHONE RENTAL AND CALL CHARGES","SPECIALIST MENTAL HEALTH","BT COMMUNICATIONS PLC",null,20.080000000000002,"BT Charges - August 2018 | 01244681380 | 01/08/2018 to 31/08/2018"]
["Department of Health","CWPFT",null,"TELEPHONE RENTAL AND CALL CHARGES","SPECIALIST MENTAL HEALTH","BT COMMUNICATIONS PLC",null,231.87,"BT Charges - August 2018 | 01260292900 | 01/08/2018 to 31/08/2018"]
["Department of Health","CWPFT",null,"TELEPHONE RENTAL AND CALL CHARGES","SPECIALIST MENTAL HEALTH","BT COMMUNICATIONS PLC",null,16.07,"BT Charges - August 2018 | 01270585412 | 01/08/2018 to 31/08/2018"]
["Department of Health","CWPFT",null,"TELEPHONE RENTAL AND CALL CHARGES","SPECIALIST MENTAL HEALTH","BT COMMUNICATIONS PLC",null,17.490000000000002,"BT Charges - August 2018 | 01513572047 | 01/08/2018 to 31/08/2018"]
["Department of Health","CWPFT",null,"TELEPHONE RENTAL AND CALL CHARGES","SPECIALIST MENTAL HEALTH","BT COMMUNICATIONS PLC",null,15.16,"BT Charges - August 2018 | 01516480314 | 01/08/2018 to 31/08/2018"]
["Department of Health","CWPFT",null,"TELEPHONE RENTAL AND CALL CHARGES","SPECIALIST MENTAL HEALTH","BT COMMUNICATIONS PLC",null,15.16,"BT Charges - August 2018 | 01516481715 | 01/08/2018 to 31/08/2018"]
["Department of Health","CWPFT",null,"TELEPHONE RENTAL AND CALL CHARGES","SPECIALIST MENTAL HEALTH","BT COMMUNICATIONS PLC",null,15.42,"BT Charges - August 2018 | 01516535398 | 01/08/2018 to 31/08/2018"]
["Department of Health","CWPFT",null,"TELEPHONE RENTAL AND CALL CHARGES","SPECIALIST MENTAL HEALTH","BT COMMUNICATIONS PLC",null,247.99,"BT Charges - August 2018 | 01516537655 | 01/08/2018 to 31/08/2018"]
["Department of Health","CWPFT",null,"TELEPHONE RENTAL AND CALL CHARGES","SPECIALIST MENTAL HEALTH","BT COMMUNICATIONS PLC",null,20.95,"BT Charges - August 2018 | 01606552023 | 01/08/2018 to 31/08/2018"]
["Department of Health","CWPFT",null,"TELEPHONE RENTAL AND CALL CHARGES","SPECIALIST MENTAL HEALTH","BT COMMUNICATIONS PLC",null,1271.1000000000001,"BT Charges - August 2018 | 01606555100 | 01/08/2018 to 31/08/2018"]
["Department of Health","CWPFT",null,"TELEPHONE RENTAL AND CALL CHARGES","SPECIALIST MENTAL HEALTH","BT COMMUNICATIONS PLC",null,15.16,"BT Charges - August 2018 | 01625860582 | 01/08/2018 to 31/08/2018"]
["Department of Health","CWPFT",null,"TELEPHONE RENTAL AND CALL CHARGES","OPERATIONAL MANAGEMENT","BT COMMUNICATIONS PLC",null,15.16,"BT Charges - August 2018 | 01625618665 | 01/08/2018 to 31/08/2018"]
["Department of Health","CWPFT",null,"TELEPHONE RENTAL AND CALL CHARGES","OPERATIONAL MANAGEMENT","BT COMMUNICATIONS PLC",null,15.290000000000001,"BT Charges - August 2018 | 01829260249 | 01/08/2018 to 31/08/2018"]
["Department of Health","CWPFT",null,"TELEPHONE RENTAL AND CALL CHARGES","OPERATIONAL MANAGEMENT","BT COMMUNICATIONS PLC",null,35.39,"BT Charges - August 2018 | 01829261640 | 01/08/2018 to 31/08/2018"]
["Department of Health","CWPFT",null,"TELEPHONE RENTAL AND CALL CHARGES","SPECIALIST MENTAL HEALTH","BT COMMUNICATIONS PLC",null,15.16,"BT Charges - August 2018 | 01625890053 | 01/08/2018 to 31/08/2018"]
["Department of Health","CWPFT",null,"TELEPHONE RENTAL AND CALL CHARGES","SPECIALIST MENTAL HEALTH","BT COMMUNICATIONS PLC",null,43.28,"BT Charges - August 2018 | 01625890052 | 01/08/2018 to 31/08/2018"]
["Department of Health","CWPFT",null,"TELEPHONE RENTAL AND CALL CHARGES","SPECIALIST MENTAL HEALTH","BT COMMUNICATIONS PLC",null,373.17,"BT Charges - August 2018 | 01625862400 | 01/08/2018 to 31/08/2018"]
["Department of Health","CWPFT",null,"TELEPHONE RENTAL AND CALL CHARGES","SPECIALIST MENTAL HEALTH","BT COMMUNICATIONS PLC",null,15.16,"BT Charges - August 2018 | 01625860970 | 01/08/2018 to 31/08/2018"]
["Department of Health","CWPFT",null,"TELEPHONE RENTAL AND CALL CHARGES","SPECIALIST MENTAL HEALTH","BT COMMUNICATIONS PLC",null,15.43,"BT Charges - August 2018 | 01625860969 | 01/08/2018 to 31/08/2018"]
["Department of Health","CWPFT",null,"TELEPHONE RENTAL AND CALL CHARGES","SPECIALIST MENTAL HEALTH","BT COMMUNICATIONS PLC",null,15.16,"BT Charges - August 2018 | 01625860787 | 01/08/2018 to 31/08/2018"]
["Department of Health","CWPFT",null,"TELEPHONE RENTAL AND CALL CHARGES","OPERATIONAL MANAGEMENT","BT COMMUNICATIONS PLC",null,27.72,"BT Charges - August 2018 | 01829261864 | 01/08/2018 to 31/08/2018"]
["Department of Health","CWPFT",null,"TELEPHONE RENTAL AND CALL CHARGES","OPERATIONAL MANAGEMENT","BT COMMUNICATIONS PLC",null,29.91,"BT Charges - August 2018 | 01829262583 | 01/08/2018 to 31/08/2018"]
["Department of Health","CWPFT",null,"TELEPHONE RENTAL AND CALL CHARGES","OPERATIONAL MANAGEMENT","BT COMMUNICATIONS PLC",null,15.790000000000001,"BT Charges - August 2018 | 01829730445 | 01/08/2018 to 31/08/2018"]
["Department of Health","CWPFT",null,"TELEPHONE RENTAL AND CALL CHARGES","OPERATIONAL MANAGEMENT","BT COMMUNICATIONS PLC",null,15.58,"BT Charges - August 2018 | 01829730560 | 01/08/2018 to 31/08/2018"]
["Department of Health","CWPFT",null,"TELEPHONE RENTAL AND CALL CHARGES","OPERATIONAL MANAGEMENT","BT COMMUNICATIONS PLC",null,75.89,"BT Charges - August 2018 | 01829733193 | 01/08/2018 to 31/08/2018"]
["Department of Health","CWPFT",null,"TELEPHONE RENTAL AND CALL CHARGES","OPERATIONAL MANAGEMENT","BT COMMUNICATIONS PLC",null,33.79,"BT Charges - August 2018 | 01829733448 | 01/08/2018 to 31/08/2018"]
["Department of Health","CWPFT",null,"TELEPHONE RENTAL AND CALL CHARGES","OPERATIONAL MANAGEMENT","BT COMMUNICATIONS PLC",null,21.54,"BT Charges - August 2018 | 01829733559 | 01/08/2018 to 31/08/2018"]
["Department of Health","CWPFT",null,"TELEPHONE RENTAL AND CALL CHARGES","OPERATIONAL MANAGEMENT","BT COMMUNICATIONS PLC",null,22.21,"BT Charges - August 2018 | 01829733678 | 01/08/2018 to 31/08/2018"]
["Department of Health","CWPFT",null,"TELEPHONE RENTAL AND CALL CHARGES","OPERATIONAL MANAGEMENT","BT COMMUNICATIONS PLC",null,129.47,"BT Charges - August 2018 | 01829733686 | 01/08/2018 to 31/08/2018"]
["Department of Health","CWPFT",null,"TELEPHONE RENTAL AND CALL CHARGES","CORPORATE SUPPORT SERVICE","BT COMMUNICATIONS PLC",null,39.480000000000004,"BT Charges - August 2018 | 01244669950 | 01/08/2018 to 31/08/2018"]
["Department of Health","CWPFT",null,"TELEPHONE RENTAL AND CALL CHARGES","CORPORATE SUPPORT SERVICE","BT COMMUNICATIONS PLC",null,29.52,"BT Charges - August 2018 | 01270585952 | 01/08/2018 to 31/08/2018"]
["Department of Health","CWPFT",null,"TELEPHONE RENTAL AND CALL CHARGES","CORPORATE SUPPORT SERVICE","BT COMMUNICATIONS PLC",null,15.15,"BT Charges - August 2018 | 01513550401 | 01/08/2018 to 31/08/2018"]
["Department of Health","CWPFT",null,"TELEPHONE RENTAL AND CALL CHARGES","CORPORATE SUPPORT SERVICE","BT COMMUNICATIONS PLC",null,29.52,"BT Charges - August 2018 | 01513555817 | 01/08/2018 to 31/08/2018"]
["Department of Health","CWPFT",null,"TELEPHONE RENTAL AND CALL CHARGES","CORPORATE SUPPORT SERVICE","BT COMMUNICATIONS PLC",null,18.830000000000002,"BT Charges - August 2018 | 01513559135 | 01/08/2018 to 31/08/2018"]
["Department of Health","CWPFT",null,"TELEPHONE RENTAL AND CALL CHARGES","CORPORATE SUPPORT SERVICE","BT COMMUNICATIONS PLC",null,20.34,"BT Charges - August 2018 | 01513567813 | 01/08/2018 to 31/08/2018"]
["Department of Health","CWPFT",null,"TELEPHONE RENTAL AND CALL CHARGES","CORPORATE SUPPORT SERVICE","BT COMMUNICATIONS PLC",null,29.52,"BT Charges - August 2018 | 01513571960 | 01/08/2018 to 31/08/2018"]
["Department of Health","CWPFT",null,"TELEPHONE RENTAL AND CALL CHARGES","CORPORATE SUPPORT SERVICE","BT COMMUNICATIONS PLC",null,5167.33,"BT Charges - August 2018 | 01514887240 | 01/08/2018 to 31/08/2018"]
["Department of Health","CWPFT",null,"TELEPHONE RENTAL AND CALL CHARGES","CORPORATE SUPPORT SERVICE","BT COMMUNICATIONS PLC",null,17.350000000000001,"BT Charges - August 2018 | 01516388249 | 01/08/2018 to 31/08/2018"]
["Department of Health","CWPFT",null,"TELEPHONE RENTAL AND CALL CHARGES","CORPORATE SUPPORT SERVICE","BT COMMUNICATIONS PLC",null,29.52,"BT Charges - August 2018 | 01606551785 | 01/08/2018 to 31/08/2018"]
["Department of Health","CWPFT",null,"TELEPHONE RENTAL AND CALL CHARGES","CORPORATE SUPPORT SERVICE","BT COMMUNICATIONS PLC",null,15.15,"BT Charges - August 2018 | 01606559115 | 01/08/2018 to 31/08/2018"]
["Department of Health","CWPFT",null,"TELEPHONE RENTAL AND CALL CHARGES","CORPORATE SUPPORT SERVICE","BT COMMUNICATIONS PLC",null,15.16,"BT Charges - August 2018 | 01625439511 | 01/08/2018 to 31/08/2018"]
["Department of Health","CWPFT",null,"TELEPHONE RENTAL AND CALL CHARGES","CORPORATE SUPPORT SERVICE","BT COMMUNICATIONS PLC",null,32.53,"BT Charges - August 2018 | 01625616763 | 01/08/2018 to 31/08/2018"]
["Department of Health","CWPFT",null,"TELEPHONE RENTAL AND CALL CHARGES","CORPORATE SUPPORT SERVICE","BT COMMUNICATIONS PLC",null,15.15,"BT Charges - August 2018 | 01625668561 | 01/08/2018 to 31/08/2018"]
["Department of Health","CWPFT",null,"TELEPHONE RENTAL AND CALL CHARGES","CORPORATE SUPPORT SERVICE","BT COMMUNICATIONS PLC",null,15.15,"BT Charges - August 2018 | 01625861329 | 01/08/2018 to 31/08/2018"]
["Department of Health","CWPFT",null,"TELEPHONE RENTAL AND CALL CHARGES","CORPORATE SUPPORT SERVICE","BT COMMUNICATIONS PLC",null,30.3,"BT Charges - August 2018 | 01625890113 | 01/08/2018 to 31/08/2018"]
["Department of Health","CWPFT",null,"TELEPHONE RENTAL AND CALL CHARGES","CORPORATE SUPPORT SERVICE","BT COMMUNICATIONS PLC",null,620.4,"BT Charges - August 2018 | 41003860 | 01/08/2018 to 31/08/2018"]
["Department of Health","CWPFT",null,"TELEPHONE RENTAL AND CALL CHARGES","CHILDREN, YOUNG PEOPLE & FAMILIES","BT COMMUNICATIONS PLC",null,15.81,"BT Charges - August 2018 | 01270252398 | 01/08/2018 to 31/08/2018"]
["Department of Health","CWPFT",null,"TELEPHONE RENTAL AND CALL CHARGES","CHILDREN, YOUNG PEOPLE & FAMILIES","BT COMMUNICATIONS PLC",null,247.88,"BT Charges - August 2018 | 01270848030 | 01/08/2018 to 31/08/2018"]
["Department of Health","CWPFT",null,"TELEPHONE RENTAL AND CALL CHARGES","CHILDREN, YOUNG PEOPLE & FAMILIES","BT COMMUNICATIONS PLC",null,15.16,"BT Charges - August 2018 | 01516041087 | 01/08/2018 to 31/08/2018"]
["Department of Health","CWPFT",null,"TELEPHONE RENTAL AND CALL CHARGES","CHILDREN, YOUNG PEOPLE & FAMILIES","BT COMMUNICATIONS PLC",null,15.16,"BT Charges - August 2018 | 01516060407 | 01/08/2018 to 31/08/2018"]
["Department of Health","CWPFT",null,"TELEPHONE RENTAL AND CALL CHARGES","CHILDREN, YOUNG PEOPLE & FAMILIES","BT COMMUNICATIONS PLC",null,15.290000000000001,"BT Charges - August 2018 | 01516302492 | 01/08/2018 to 31/08/2018"]
["Department of Health","CWPFT",null,"TELEPHONE RENTAL AND CALL CHARGES","CHILDREN, YOUNG PEOPLE & FAMILIES","BT COMMUNICATIONS PLC",null,15.16,"BT Charges - August 2018 | 01516538907 | 01/08/2018 to 31/08/2018"]
["Department of Health","CWPFT",null,"TELEPHONE RENTAL AND CALL CHARGES","CHILDREN, YOUNG PEOPLE & FAMILIES","BT COMMUNICATIONS PLC",null,15.39,"BT Charges - August 2018 | 01516709772 | 01/08/2018 to 31/08/2018"]
["Department of Health","CWPFT",null,"TELEPHONE RENTAL AND CALL CHARGES","CHILDREN, YOUNG PEOPLE & FAMILIES","BT COMMUNICATIONS PLC",null,15.18,"BT Charges - August 2018 | 01606592885 | 01/08/2018 to 31/08/2018"]
["Department of Health","CWPFT",null,"TELEPHONE RENTAL AND CALL CHARGES","CHILDREN, YOUNG PEOPLE & FAMILIES","BT COMMUNICATIONS PLC",null,15.16,"BT Charges - August 2018 | 01625427990 | 01/08/2018 to 31/08/2018"]
["Department of Health","CWPFT",null,"TELEPHONE RENTAL AND CALL CHARGES","CORPORATE SUPPORT SERVICE","BT COMMUNICATIONS PLC",null,15.15,"BT Charges - August 2018 | 01244324803 | 01/08/2018 to 31/08/2018"]
["Department of Health","CWPFT",null,"TELEPHONE RENTAL AND CALL CHARGES","CORPORATE SUPPORT SERVICE","BT COMMUNICATIONS PLC",null,33.54,"BT Charges - August 2018 | 01244370816 | 01/08/2018 to 31/08/2018"]
["Department of Health","CWPFT",null,"TELEPHONE RENTAL AND CALL CHARGES","CORPORATE SUPPORT SERVICE","BT COMMUNICATIONS PLC",null,15.15,"BT Charges - August 2018 | 01244373146 | 01/08/2018 to 31/08/2018"]
["Department of Health","CWPFT",null,"TELEPHONE RENTAL AND CALL CHARGES","CORPORATE SUPPORT SERVICE","BT COMMUNICATIONS PLC",null,15.15,"BT Charges - August 2018 | 01244373230 | 01/08/2018 to 31/08/2018"]
["Department of Health","CWPFT",null,"TELEPHONE RENTAL AND CALL CHARGES","CORPORATE SUPPORT SERVICE","BT COMMUNICATIONS PLC",null,15.15,"BT Charges - August 2018 | 01244374814 | 01/08/2018 to 31/08/2018"]
["Department of Health","CWPFT",null,"TELEPHONE RENTAL AND CALL CHARGES","CORPORATE SUPPORT SERVICE","BT COMMUNICATIONS PLC",null,30.86,"BT Charges - August 2018 | 01244375653 | 01/08/2018 to 31/08/2018"]
["Department of Health","CWPFT",null,"TELEPHONE RENTAL AND CALL CHARGES","CORPORATE SUPPORT SERVICE","BT COMMUNICATIONS PLC",null,31.78,"BT Charges - August 2018 | 01244377501 | 01/08/2018 to 31/08/2018"]
["Department of Health","CWPFT",null,"TELEPHONE RENTAL AND CALL CHARGES","CORPORATE SUPPORT SERVICE","BT COMMUNICATIONS PLC",null,32.29,"BT Charges - August 2018 | 01244378109 | 01/08/2018 to 31/08/2018"]
["Department of Health","CWPFT",null,"TELEPHONE RENTAL AND CALL CHARGES","CORPORATE SUPPORT SERVICE","BT COMMUNICATIONS PLC",null,24.490000000000002,"BT Charges - August 2018 | 01244398556 | 01/08/2018 to 31/08/2018"]
["Department of Health","CWPFT",null,"TELEPHONE RENTAL AND CALL CHARGES","OPERATIONAL MANAGEMENT","BT COMMUNICATIONS PLC",null,25.04,"BT Charges - August 2018 | 01244341327 | 01/08/2018 to 31/08/2018"]
["Department of Health","CWPFT",null,"TELEPHONE RENTAL AND CALL CHARGES","OPERATIONAL MANAGEMENT","BT COMMUNICATIONS PLC",null,269.89999999999998,"BT Charges - August 2018 | 01244340631 | 01/08/2018 to 31/08/2018"]
["Department of Health","CWPFT",null,"TELEPHONE RENTAL AND CALL CHARGES","OPERATIONAL MANAGEMENT","BT COMMUNICATIONS PLC",null,29.52,"BT Charges - August 2018 | 01244316048 | 01/08/2018 to 31/08/2018"]
["Department of Health","CWPFT",null,"TELEPHONE RENTAL AND CALL CHARGES","OPERATIONAL MANAGEMENT","BT COMMUNICATIONS PLC",null,35.35,"BT Charges - August 2018 | 01244344658 | 01/08/2018 to 31/08/2018"]
["Department of Health","CWPFT",null,"TELEPHONE RENTAL AND CALL CHARGES","OPERATIONAL MANAGEMENT","BT COMMUNICATIONS PLC",null,29.52,"BT Charges - August 2018 | 01244315952 | 01/08/2018 to 31/08/2018"]
["Department of Health","CWPFT",null,"TELEPHONE RENTAL AND CALL CHARGES","OPERATIONAL MANAGEMENT","BT COMMUNICATIONS PLC",null,35,"BT Charges - August 2018 | 01244315923 | 01/08/2018 to 31/08/2018"]
["Department of Health","CWPFT",null,"TELEPHONE RENTAL AND CALL CHARGES","OPERATIONAL MANAGEMENT","BT COMMUNICATIONS PLC",null,34.44,"BT Charges - August 2018 | 01244315637 | 01/08/2018 to 31/08/2018"]
["Department of Health","CWPFT",null,"TELEPHONE RENTAL AND CALL CHARGES","OPERATIONAL MANAGEMENT","BT COMMUNICATIONS PLC",null,34.44,"BT Charges - August 2018 | 01244312723 | 01/08/2018 to 31/08/2018"]
["Department of Health","CWPFT",null,"TELEPHONE RENTAL AND CALL CHARGES","OPERATIONAL MANAGEMENT","BT COMMUNICATIONS PLC",null,31.95,"BT Charges - August 2018 | 01244346458 | 01/08/2018 to 31/08/2018"]
["Department of Health","CWPFT",null,"TELEPHONE RENTAL AND CALL CHARGES","NEIGHBOURHOOD","BT COMMUNICATIONS PLC",null,16.89,"BT Charges - August 2018 | 01829734087 | 01/08/2018 to 31/08/2018"]
["Department of Health","CWPFT",null,"TELEPHONE RENTAL AND CALL CHARGES","NEIGHBOURHOOD","BT COMMUNICATIONS PLC",null,15.74,"BT Charges - August 2018 | 01625669204 | 01/08/2018 to 31/08/2018"]
["Department of Health","CWPFT",null,"TELEPHONE RENTAL AND CALL CHARGES","NEIGHBOURHOOD","BT COMMUNICATIONS PLC",null,15.26,"BT Charges - August 2018 | 01625614110 | 01/08/2018 to 31/08/2018"]
["Department of Health","CWPFT",null,"TELEPHONE RENTAL AND CALL CHARGES","NEIGHBOURHOOD","BT COMMUNICATIONS PLC",null,15.16,"BT Charges - August 2018 | 01625511639 | 01/08/2018 to 31/08/2018"]
["Department of Health","CWPFT",null,"TELEPHONE RENTAL AND CALL CHARGES","NEIGHBOURHOOD","BT COMMUNICATIONS PLC",null,18.36,"BT Charges - August 2018 | 01519225729 | 01/08/2018 to 31/08/2018"]
["Department of Health","CWPFT",null,"TELEPHONE RENTAL AND CALL CHARGES","NEIGHBOURHOOD","BT COMMUNICATIONS PLC",null,195.70000000000002,"BT Charges - August 2018 | 01513559545 | 01/08/2018 to 31/08/2018"]
["Department of Health","CWPFT",null,"TELEPHONE RENTAL AND CALL CHARGES","NEIGHBOURHOOD","BT COMMUNICATIONS PLC",null,15.52,"BT Charges - August 2018 | 01270588574 | 01/08/2018 to 31/08/2018"]
["Department of Health","CWPFT",null,"TELEPHONE RENTAL AND CALL CHARGES","NEIGHBOURHOOD","BT COMMUNICATIONS PLC",null,15.33,"BT Charges - August 2018 | 01270216419 | 01/08/2018 to 31/08/2018"]
["Department of Health","CWPFT",null,"TELEPHONE RENTAL AND CALL CHARGES","NEIGHBOURHOOD","BT COMMUNICATIONS PLC",null,29.52,"BT Charges - August 2018 | 01244390399 | 01/08/2018 to 31/08/2018"]
["Department of Health","CWPFT",null,"TELEPHONE RENTAL AND CALL CHARGES","OPERATIONAL MANAGEMENT","BT COMMUNICATIONS PLC",null,73.88,"BT Charges - August 2018 | 01244348022 | 01/08/2018 to 31/08/2018"]
["Department of Health","CWPFT",null,"TELEPHONE RENTAL AND CALL CHARGES","LEARNING DISABILITIES & NEURO SERVICES","BT COMMUNICATIONS PLC",null,1.87,"BT Charges - August 2018 | 34282502 | 01/08/2018 to 31/08/2018"]
["Department of Health","CWPFT",null,"TELEPHONE RENTAL AND CALL CHARGES","LEARNING DISABILITIES & NEURO SERVICES","BT COMMUNICATIONS PLC",null,15.5,"BT Charges - August 2018 | 01606869195 | 01/08/2018 to 31/08/2018"]
["Department of Health","CWPFT",null,"TELEPHONE RENTAL AND CALL CHARGES","LEARNING DISABILITIES & NEURO SERVICES","BT COMMUNICATIONS PLC",null,15.16,"BT Charges - August 2018 | 01606550849 | 01/08/2018 to 31/08/2018"]
["Department of Health","CWPFT",null,"TELEPHONE RENTAL AND CALL CHARGES","LEARNING DISABILITIES & NEURO SERVICES","BT COMMUNICATIONS PLC",null,16.39,"BT Charges - August 2018 | 01516709780 | 01/08/2018 to 31/08/2018"]
["Department of Health","CWPFT",null,"TELEPHONE RENTAL AND CALL CHARGES","LEARNING DISABILITIES & NEURO SERVICES","BT COMMUNICATIONS PLC",null,28.44,"BT Charges - August 2018 | 01516520473 | 01/08/2018 to 31/08/2018"]
["Department of Health","CWPFT",null,"TELEPHONE RENTAL AND CALL CHARGES","LEARNING DISABILITIES & NEURO SERVICES","BT COMMUNICATIONS PLC",null,15.24,"BT Charges - August 2018 | 01270651717 | 01/08/2018 to 31/08/2018"]
["Department of Health","CWPFT",null,"TELEPHONE RENTAL AND CALL CHARGES","OPERATIONAL MANAGEMENT","BT COMMUNICATIONS PLC",null,29.52,"BT Charges - August 2018 | 01244375295 | 01/08/2018 to 31/08/2018"]
["Department of Health","CWPFT",null,"TELEPHONE RENTAL AND CALL CHARGES","OPERATIONAL MANAGEMENT","BT COMMUNICATIONS PLC",null,20.080000000000002,"BT Charges - August 2018 | 01244398010 | 01/08/2018 to 31/08/2018"]
["Department of Health","CWPFT",null,"TELEPHONE RENTAL AND CALL CHARGES","OPERATIONAL MANAGEMENT","BT COMMUNICATIONS PLC",null,328.32,"BT Charges - August 2018 | 01244401075 | 01/08/2018 to 31/08/2018"]
["Department of Health","CWPFT","2018-08-15","DRUGS","CORPORATE SUPPORT SERVICE","NHS BUSINESS SERVICES AUTHORITY",5142494,133549.83000000002,"DRA-JUN.18-RECHARGE FOR PRESCRIPTIONS"]
["Department of Health","CWPFT","2018-07-30","STAFF","TRUST WIDE","NHS ENGLAND",5142598,25074.31,"MAN -MONTH 4 DEDUCTIONS"]
["Department of Health","CWPFT","2018-07-31","CONTRACT : OTHER EXTERNAL","CORPORATE SUPPORT SERVICE","LLOYDS PHARMACY LTD",5142665,30583.49,"Pharmacy Goods & Services Supplied - July 2018"]
["Department of Health","CWPFT",null,"DRUGS","CHILDREN, YOUNG PEOPLE & FAMILIES","LLOYDS PHARMACY LTD",null,2450.4900000000002,"Pharmacy Goods & Services Supplied - July 2018"]
["Department of Health","CWPFT",null,"DRUGS","NEIGHBOURHOOD","LLOYDS PHARMACY LTD",null,2029.65,"Pharmacy Goods & Services Supplied - July 2018"]
["Department of Health","CWPFT",null,"DRUGS","LEARNING DISABILITIES & NEURO SERVICES","LLOYDS PHARMACY LTD",null,1659.23,"Pharmacy Goods & Services Supplied - July 2018"]
["Department of Health","CWPFT",null,"DRUGS","JOINT THERAPIES","LLOYDS PHARMACY LTD",null,147.87,"Pharmacy Goods & Services Supplied - July 2018"]
["Department of Health","CWPFT",null,"DRUGS","CORPORATE SUPPORT SERVICE","LLOYDS PHARMACY LTD",null,963.07,"Pharmacy Goods & Services Supplied - July 2018"]
["Department of Health","CWPFT",null,"DRUGS","SPECIALIST MENTAL HEALTH","LLOYDS PHARMACY LTD",null,128783.12000000001,"Pharmacy Goods & Services Supplied - July 2018"]
["Department of Health","CWPFT","2018-08-13","CNST CONTRIBUTIONS","CORPORATE SUPPORT SERVICE","NHS LITIGATION AUTHORITY",5142709,50608.700000000004,"DRA-GROSS CONTRIBUTION"]

{"sheet":"Macro1","index":1,"n_rows":209,"n_cols":2,"rows_kept":209,"cut":false,"hidden":true,"merged":[]}
["Macro1","Auto_Open"]
[{"$f":"ALIGNMENT(2,FALSE,1,0,FALSE)","v":true},{"$f":"ERROR(2,Recover)","v":true}]
[{"$f":"BORDER(0,1,1,1,1,0,0,1,1,1,1)","v":true},{"$f":"WORKBOOK.SELECT(\">25k report\")","v":true}]
[{"$f":"PATTERNS(1,0,2,TRUE)","v":true},{"$f":"WINDOW.RESTORE()","v":true}]
[{"$f":"FORMAT.FONT(\"Century Gothic\",8,FALSE,FALSE,FALSE,FALSE,1,FALSE,FALSE)","v":true},{"$f":"WINDOW.SIZE(82.5,42.75)","v":true}]
[{"$f":"RETURN()","v":true},{"$f":"WORKBOOK.HIDE(\"Macro1\",TRUE)","v":true}]
[null,{"$f":"EDIT.COLOR(1,0,0,0)","v":true}]
["Macro10",{"$f":"EDIT.COLOR(3,255,0,0)","v":true}]
[{"$f":"ALIGNMENT(2,FALSE,1,0,FALSE)","v":true},{"$f":"EDIT.COLOR(4,212,212,212)","v":true}]
[{"$f":"BORDER(1,1,1,0,0,0,1,1,1,0,0)","v":true},{"$f":"EDIT.COLOR(2,255,255,255)","v":true}]
[{"$f":"PATTERNS(1,0,2,TRUE)","v":true},{"$f":"RUN(\"Macro23\")","v":{"$error":"#N/A"}}]
[{"$f":"FORMAT.FONT(\"Century Gothic\",8,FALSE,FALSE,FALSE,FALSE,1,FALSE,FALSE)","v":true},{"$f":"DELETE.NAME(\"Auto_Open\")","v":true}]
[{"$f":"RETURN()","v":true},{"$f":"WORKBOOK.SELECT(\">25k report\")","v":true}]
[null,{"$f":"SELECT(\"R1:R65536\")","v":true}]
["Macro11",{"$f":"COLUMN.WIDTH(,,,3)","v":true}]
[{"$f":"ALIGNMENT(3,FALSE,1,0,FALSE)","v":true},{"$f":"ROW.HEIGHT(,,,3)","v":true}]
[{"$f":"BORDER(1,1,1,0,0,0,1,1,1,0,0)","v":true},{"$f":"SELECT(\"R1C1\")","v":true}]
[{"$f":"PATTERNS(1,0,2,TRUE)","v":true},{"$f":"WINDOW.MAXIMIZE()","v":true}]
[{"$f":"FORMAT.FONT(\"Century Gothic\",8,FALSE,FALSE,FALSE,FALSE,1,FALSE,FALSE)","v":true},{"$f":"RETURN()","v":true}]
[{"$f":"RETURN()","v":true}]
[]
["Macro12"]
[{"$f":"ALIGNMENT(4,FALSE,1,0,FALSE)","v":true}]
[{"$f":"BORDER(0,1,1,1,1,0,0,1,1,1,1)","v":true}]
[{"$f":"PATTERNS(1,0,2,TRUE)","v":true}]
[{"$f":"FORMAT.FONT(\"Century Gothic\",8,TRUE,FALSE,FALSE,FALSE,1,FALSE,FALSE)","v":true}]
[{"$f":"RETURN()","v":true}]
[]
["Macro13"]
[{"$f":"ALIGNMENT(2,FALSE,1,0,FALSE)","v":true}]
[{"$f":"BORDER(0,1,1,1,1,0,0,1,1,1,1)","v":true}]
[{"$f":"PATTERNS(1,0,2,TRUE)","v":true}]
[{"$f":"FORMAT.FONT(\"Century Gothic\",8,TRUE,FALSE,FALSE,FALSE,1,FALSE,FALSE)","v":true}]
[{"$f":"RETURN()","v":true}]
[]
["Macro14"]
[{"$f":"ALIGNMENT(3,TRUE,2,0,FALSE)","v":true}]
[{"$f":"BORDER(0,1,1,1,1,0,0,1,1,1,1)","v":true}]
[{"$f":"PATTERNS(1,0,2,TRUE)","v":true}]
[{"$f":"FORMAT.FONT(\"Century Gothic\",8,TRUE,FALSE,FALSE,FALSE,1,FALSE,FALSE)","v":true}]
[{"$f":"RETURN()","v":true}]
[]
["Macro15"]
[{"$f":"ALIGNMENT(3,TRUE,2,0,FALSE)","v":true}]
[{"$f":"BORDER(0,1,1,1,1,0,0,1,1,1,1)","v":true}]
[{"$f":"PATTERNS(1,0,2,TRUE)","v":true}]
[{"$f":"FORMAT.FONT(\"Century Gothic\",8,TRUE,FALSE,FALSE,FALSE,1,FALSE,FALSE)","v":true}]
[{"$f":"RETURN()","v":true}]
[]
["Macro16"]
[{"$f":"ALIGNMENT(2,FALSE,1,0,FALSE)","v":true}]
[{"$f":"BORDER(0,1,1,1,1,0,0,1,1,1,1)","v":true}]
[{"$f":"PATTERNS(1,0,2,TRUE)","v":true}]
[{"$f":"FORMAT.FONT(\"Century Gothic\",8,TRUE,FALSE,FALSE,FALSE,1,FALSE,FALSE)","v":true}]
[{"$f":"RETURN()","v":true}]
[]
["Macro17"]
[{"$f":"ALIGNMENT(3,TRUE,2,0,FALSE)","v":true}]
[{"$f":"BORDER(0,1,1,1,1,0,0,1,1,1,1)","v":true}]
[{"$f":"PATTERNS(1,0,2,TRUE)","v":true}]
[{"$f":"FORMAT.FONT(\"Century Gothic\",8,TRUE,FALSE,FALSE,FALSE,1,FALSE,FALSE)","v":true}]
[{"$f":"RETURN()","v":true}]
[]
["Macro18"]
[{"$f":"ALIGNMENT(3,TRUE,2,0,FALSE)","v":true}]
[{"$f":"BORDER(0,1,1,1,1,0,0,1,1,1,1)","v":true}]
[{"$f":"PATTERNS(1,0,2,TRUE)","v":true}]
[{"$f":"FORMAT.FONT(\"Century Gothic\",8,TRUE,FALSE,FALSE,FALSE,1,FALSE,FALSE)","v":true}]
[{"$f":"RETURN()","v":true}]
[]
["Macro19"]
[{"$f":"ALIGNMENT(3,TRUE,2,0,FALSE)","v":true}]
[{"$f":"BORDER(0,1,1,1,1,0,0,1,1,1,1)","v":true}]
[{"$f":"PATTERNS(1,0,2,TRUE)","v":true}]
[{"$f":"FORMAT.FONT(\"Century Gothic\",8,TRUE,FALSE,FALSE,FALSE,1,FALSE,FALSE)","v":true}]
[{"$f":"RETURN()","v":true}]
[]
["Macro2"]
[{"$f":"ALIGNMENT(3,FALSE,1,0,FALSE)","v":true}]
[{"$f":"BORDER(0,1,1,1,1,0,0,1,1,1,1)","v":true}]
[{"$f":"PATTERNS(1,0,2,TRUE)","v":true}]
[{"$f":"FORMAT.FONT(\"Century Gothic\",8,FALSE,FALSE,FALSE,FALSE,1,FALSE,FALSE)","v":true}]
[{"$f":"RETURN()","v":true}]
[]
["Macro20"]
[{"$f":"ALIGNMENT(2,FALSE,1,0,FALSE)","v":true}]
[{"$f":"BORDER(0,1,1,1,1,0,0,1,1,1,1)","v":true}]
[{"$f":"PATTERNS(1,0,2,TRUE)","v":true}]
[{"$f":"FORMAT.FONT(\"Century Gothic\",8,TRUE,FALSE,FALSE,FALSE,1,FALSE,FALSE)","v":true}]
[{"$f":"RETURN()","v":true}]
[]
["Macro21"]
[{"$f":"ALIGNMENT(2,FALSE,1,0,FALSE)","v":true}]
[{"$f":"PATTERNS(1,0,3,TRUE)","v":true}]
[{"$f":"FORMAT.FONT(\"Arial\",8,FALSE,FALSE,FALSE,FALSE,1,FALSE,FALSE)","v":true}]
[{"$f":"RETURN()","v":true}]
[]
["Macro22"]
[{"$f":"ALIGNMENT(2,FALSE,1,0,FALSE)","v":true}]
[{"$f":"PATTERNS(1,0,3,TRUE)","v":true}]
[{"$f":"FORMAT.FONT(\"Arial\",8,FALSE,FALSE,FALSE,FALSE,1,FALSE,FALSE)","v":true}]
[{"$f":"RETURN()","v":true}]
[]
["Macro23"]
[{"$f":"WORKBOOK.SELECT(\">25k report\")","v":true}]
[{"$f":"SELECT(\"R4C1:R156C6,R4C9:R156C9\")","v":true}]
[{"$f":"RUN(\"Macro1\")","v":{"$error":"#N/A"}}]
[{"$f":"SELECT(\"R4C7:R156C7\")","v":true}]
[{"$f":"RUN(\"Macro2\")","v":{"$error":"#N/A"}}]
[{"$f":"SELECT(\"R4C8:R156C8\")","v":true}]
[{"$f":"RUN(\"Macro3\")","v":{"$error":"#N/A"}}]
[{"$f":"SELECT(\"R7C3:R8C3\")","v":true}]
[{"$f":"RUN(\"Macro4\")","v":{"$error":"#N/A"}}]
[{"$f":"SELECT(\"R7C7:R8C7\")","v":true}]
[{"$f":"RUN(\"Macro5\")","v":{"$error":"#N/A"}}]
[{"$f":"SELECT(\"R10C3:R11C3\")","v":true}]
[{"$f":"RUN(\"Macro6\")","v":{"$error":"#N/A"}}]
[{"$f":"SELECT(\"R10C7:R11C7\")","v":true}]
[{"$f":"RUN(\"Macro7\")","v":{"$error":"#N/A"}}]
[{"$f":"SELECT(\"R15C3:R146C3\")","v":true}]
[{"$f":"RUN(\"Macro8\")","v":{"$error":"#N/A"}}]
[{"$f":"SELECT(\"R15C7:R146C7\")","v":true}]
[{"$f":"RUN(\"Macro9\")","v":{"$error":"#N/A"}}]
[{"$f":"SELECT(\"R149C3:R155C3\")","v":true}]
[{"$f":"RUN(\"Macro10\")","v":{"$error":"#N/A"}}]
[{"$f":"SELECT(\"R149C7:R155C7\")","v":true}]
[{"$f":"RUN(\"Macro11\")","v":{"$error":"#N/A"}}]
[{"$f":"SELECT(\"R4C7:R156C7\")","v":true}]
[{"$f":"FORMAT.NUMBER(\"##########0\")","v":true}]
[{"$f":"SELECT(\"R4C8:R156C8\")","v":true}]
[{"$f":"FORMAT.NUMBER(\"#########0.00\")","v":true}]
[{"$f":"SELECT(\"R4C3:R156C3\")","v":true}]
[{"$f":"FORMAT.NUMBER(\"dd/mm/yyyy\")","v":true}]
[{"$f":"SELECT(\"R1C1\")","v":true}]
[{"$f":"RUN(\"Macro12\")","v":{"$error":"#N/A"}}]
[{"$f":"SELECT(\"R1C2\")","v":true}]
[{"$f":"RUN(\"Macro13\")","v":{"$error":"#N/A"}}]
[{"$f":"SELECT(\"R3C1:R3C3\")","v":true}]
[{"$f":"RUN(\"Macro14\")","v":{"$error":"#N/A"}}]
[{"$f":"SELECT(\"R3C4\")","v":true}]
[{"$f":"RUN(\"Macro15\")","v":{"$error":"#N/A"}}]
[{"$f":"SELECT(\"R3C5\")","v":true}]
[{"$f":"RUN(\"Macro16\")","v":{"$error":"#N/A"}}]
[{"$f":"SELECT(\"R3C6\")","v":true}]
[{"$f":"RUN(\"Macro17\")","v":{"$error":"#N/A"}}]
[{"$f":"SELECT(\"R3C7\")","v":true}]
[{"$f":"RUN(\"Macro18\")","v":{"$error":"#N/A"}}]
[{"$f":"SELECT(\"R3C8\")","v":true}]
[{"$f":"RUN(\"Macro19\")","v":{"$error":"#N/A"}}]
[{"$f":"SELECT(\"R3C9\")","v":true}]
[{"$f":"RUN(\"Macro20\")","v":{"$error":"#N/A"}}]
[{"$f":"SELECT(\"R13C4\")","v":true}]
[{"$f":"RUN(\"Macro21\")","v":{"$error":"#N/A"}}]
[{"$f":"SELECT(\"R13C5\")","v":true}]
[{"$f":"RUN(\"Macro22\")","v":{"$error":"#N/A"}}]
[{"$f":"RETURN()","v":true}]
[]
["Macro3"]
[{"$f":"ALIGNMENT(4,FALSE,1,0,FALSE)","v":true}]
[{"$f":"BORDER(0,1,1,1,1,0,0,1,1,1,1)","v":true}]
[{"$f":"PATTERNS(1,0,2,TRUE)","v":true}]
[{"$f":"FORMAT.FONT(\"Century Gothic\",8,FALSE,FALSE,FALSE,FALSE,1,FALSE,FALSE)","v":true}]
[{"$f":"RETURN()","v":true}]
[]
["Macro4"]
[{"$f":"ALIGNMENT(2,FALSE,1,0,FALSE)","v":true}]
[{"$f":"BORDER(1,1,1,0,0,0,1,1,1,0,0)","v":true}]
[{"$f":"PATTERNS(1,0,2,TRUE)","v":true}]
[{"$f":"FORMAT.FONT(\"Century Gothic\",8,FALSE,FALSE,FALSE,FALSE,1,FALSE,FALSE)","v":true}]
[{"$f":"RETURN()","v":true}]
[]
["Macro5"]
[{"$f":"ALIGNMENT(3,FALSE,1,0,FALSE)","v":true}]
[{"$f":"BORDER(1,1,1,0,0,0,1,1,1,0,0)","v":true}]
[{"$f":"PATTERNS(1,0,2,TRUE)","v":true}]
[{"$f":"FORMAT.FONT(\"Century Gothic\",8,FALSE,FALSE,FALSE,FALSE,1,FALSE,FALSE)","v":true}]
[{"$f":"RETURN()","v":true}]
[]
["Macro6"]
[{"$f":"ALIGNMENT(2,FALSE,1,0,FALSE)","v":true}]
[{"$f":"BORDER(1,1,1,0,0,0,1,1,1,0,0)","v":true}]
[{"$f":"PATTERNS(1,0,2,TRUE)","v":true}]
[{"$f":"FORMAT.FONT(\"Century Gothic\",8,FALSE,FALSE,FALSE,FALSE,1,FALSE,FALSE)","v":true}]
[{"$f":"RETURN()","v":true}]
[]
["Macro7"]
[{"$f":"ALIGNMENT(3,FALSE,1,0,FALSE)","v":true}]
[{"$f":"BORDER(1,1,1,0,0,0,1,1,1,0,0)","v":true}]
[{"$f":"PATTERNS(1,0,2,TRUE)","v":true}]
[{"$f":"FORMAT.FONT(\"Century Gothic\",8,FALSE,FALSE,FALSE,FALSE,1,FALSE,FALSE)","v":true}]
[{"$f":"RETURN()","v":true}]
[]
["Macro8"]
[{"$f":"ALIGNMENT(2,FALSE,1,0,FALSE)","v":true}]
[{"$f":"BORDER(1,1,1,0,0,0,1,1,1,0,0)","v":true}]
[{"$f":"PATTERNS(1,0,2,TRUE)","v":true}]
[{"$f":"FORMAT.FONT(\"Century Gothic\",8,FALSE,FALSE,FALSE,FALSE,1,FALSE,FALSE)","v":true}]
[{"$f":"RETURN()","v":true}]
[]
["Macro9"]
[{"$f":"ALIGNMENT(3,FALSE,1,0,FALSE)","v":true}]
[{"$f":"BORDER(1,1,1,0,0,0,1,1,1,0,0)","v":true}]
[{"$f":"PATTERNS(1,0,2,TRUE)","v":true}]
[{"$f":"FORMAT.FONT(\"Century Gothic\",8,FALSE,FALSE,FALSE,FALSE,1,FALSE,FALSE)","v":true}]
[{"$f":"RETURN()","v":true}]
[]
["Recover"]
[{"$f":"GOTO(OFFSET(LAST.ERROR(),1,0))","v":false}]
[{"$f":"RETURN()","v":true}]